Workbook

Sheet Kylpyhuoneen remonttimenot
B1: Kylpyhuoneremontin kustannusten laskentataulukko
B2: HUOMAUTUS: Taulukossa näkyy erotussarakkeita, jos tosiasialliset summat ylittävät arvioidut. Punaiset numerot näyttävät ylitykset (negatiiviset) ja musta näyttää alitukset (positiiviset).
E3: Eritellyt kustannukset (€) | H3: Kustannukset yhteensä (€)
B4: Alue | C4: Kohteet | D4: Määrä | E4: Arvioidut | F4: Todelliset | G4: Erotus | H4: Arvioidut | I4: Todelliset | J4: Erotus
B5: Kylpy/suihku | C5: Kylpyamme, valurautaa, 5', vakio | D5: 1 | E5: 250.00 € | F5: =RANDBETWEEN(E5+2,E5+20) -> 259.00 € | G5: =IFERROR(Kustannukset[[#This Row],[Arvioidut]]-Kustannukset[[#This Row],[Todelliset]], "") -> -9.00 € | H5: =IFERROR(Kustannukset[[#This Row],[Määrä]]*Kustannukset[[#This Row],[Arvioidut]], "") -> 250.00 € | I5: =IFERROR(Kustannukset[[#This Row],[Määrä]]*Kustannukset[[#This Row],[Todelliset]], "") -> 259.00 € | J5: =IFERROR(Kustannukset[[#This Row],[Arvioidut ]]-Kustannukset[[#This Row],[Todelliset ]], "") -> -9.00 €
B6: Kylpy/suihku | C6: Suihkuovet, saranoidut, vakio | D6: 1 | E6: 200.00 € | F6: 204.00 € | G6: =IFERROR(Kustannukset[[#This Row],[Arvioidut]]-Kustannukset[[#This Row],[Todelliset]], "") -> -4.00 € | H6: =IFERROR(Kustannukset[[#This Row],[Määrä]]*Kustannukset[[#This Row],[Arvioidut]], "") -> 200.00 € | I6: =IFERROR(Kustannukset[[#This Row],[Määrä]]*Kustannukset[[#This Row],[Todelliset]], "") -> 204.00 € | J6: =IFERROR(Kustannukset[[#This Row],[Arvioidut ]]-Kustannukset[[#This Row],[Todelliset ]], "") -> -4.00 €
B7: Kylpy/suihku | C7: Suihkun suutin, vakio | D7: 1 | E7: 50.00 € | F7: 67.00 € | G7: =IFERROR(Kustannukset[[#This Row],[Arvioidut]]-Kustannukset[[#This Row],[Todelliset]], "") -> -17.00 € | H7: =IFERROR(Kustannukset[[#This Row],[Määrä]]*Kustannukset[[#This Row],[Arvioidut]], "") -> 50.00 € | I7: =IFERROR(Kustannukset[[#This Row],[Määrä]]*Kustannukset[[#This Row],[Todelliset]], "") -> 67.00 € | J7: =IFERROR(Kustannukset[[#This Row],[Arvioidut ]]-Kustannukset[[#This Row],[Todelliset ]], "") -> -17.00 €
B8: Kylpy/suihku | C8: Kylpyammeen ympäröivä seinä, vakio | D8: 1 | E8: 200.00 € | F8: 215.00 € | G8: =IFERROR(Kustannukset[[#This Row],[Arvioidut]]-Kustannukset[[#This Row],[Todelliset]], "") -> -15.00 € | H8: =IFERROR(Kustannukset[[#This Row],[Määrä]]*Kustannukset[[#This Row],[Arvioidut]], "") -> 200.00 € | I8: =IFERROR(Kustannukset[[#This Row],[Määrä]]*Kustannukset[[#This Row],[Todelliset]], "") -> 215.00 € | J8: =IFERROR(Kustannukset[[#This Row],[Arvioidut ]]-Kustannukset[[#This Row],[Todelliset ]], "") -> -15.00 €
B9: Kaapit | C9: Lääkekaappi 24'', deluxe | D9: 1 | E9: 200.00 € | F9: 204.00 € | G9: =IFERROR(Kustannukset[[#This Row],[Arvioidut]]-Kustannukset[[#This Row],[Todelliset]], "") -> -4.00 € | H9: =IFERROR(Kustannukset[[#This Row],[Määrä]]*Kustannukset[[#This Row],[Arvioidut]], "") -> 200.00 € | I9: =IFERROR(Kustannukset[[#This Row],[Määrä]]*Kustannukset[[#This Row],[Todelliset]], "") -> 204.00 € | J9: =IFERROR(Kustannukset[[#This Row],[Arvioidut ]]-Kustannukset[[#This Row],[Todelliset ]], "") -> -4.00 €
B10: Kaapit | C10: Modulaarinen peilikaappi 30'', vakio | D10: 2 | E10: 100.00 € | F10: 120.00 € | G10: =IFERROR(Kustannukset[[#This Row],[Arvioidut]]-Kustannukset[[#This Row],[Todelliset]], "") -> -20.00 € | H10: =IFERROR(Kustannukset[[#This Row],[Määrä]]*Kustannukset[[#This Row],[Arvioidut]], "") -> 200.00 € | I10: =IFERROR(Kustannukset[[#This Row],[Määrä]]*Kustannukset[[#This Row],[Todelliset]], "") -> 240.00 € | J10: =IFERROR(Kustannukset[[#This Row],[Arvioidut ]]-Kustannukset[[#This Row],[Todelliset ]], "") -> -40.00 €
B11: Tiskin päällä olevat | C11: Kaakeli, deluxe (määrä pituusmittoina) | D11: 5 | E11: 22.50 € | F11: 32.00 € | G11: =IFERROR(Kustannukset[[#This Row],[Arvioidut]]-Kustannukset[[#This Row],[Todelliset]], "") -> -9.50 € | H11: =IFERROR(Kustannukset[[#This Row],[Määrä]]*Kustannukset[[#This Row],[Arvioidut]], "") -> 112.50 € | I11: =IFERROR(Kustannukset[[#This Row],[Määrä]]*Kustannukset[[#This Row],[Todelliset]], "") -> 160.00 € | J11: =IFERROR(Kustannukset[[#This Row],[Arvioidut ]]-Kustannukset[[#This Row],[Todelliset ]], "") -> -47.50 €
B12: Hanat | C12: Hana, kylpyamme, vakio | D12: 1 | E12: 90.00 € | F12: 100.00 € | G12: =IFERROR(Kustannukset[[#This Row],[Arvioidut]]-Kustannukset[[#This Row],[Todelliset]], "") -> -10.00 € | H12: =IFERROR(Kustannukset[[#This Row],[Määrä]]*Kustannukset[[#This Row],[Arvioidut]], "") -> 90.00 € | I12: =IFERROR(Kustannukset[[#This Row],[Määrä]]*Kustannukset[[#This Row],[Todelliset]], "") -> 100.00 € | J12: =IFERROR(Kustannukset[[#This Row],[Arvioidut ]]-Kustannukset[[#This Row],[Todelliset ]], "") -> -10.00 €
B13: Hanat | C13: Hana, suihkulle, yksi kahva, vakio | D13: 1 | E13: 115.00 € | F13: 133.00 € | G13: =IFERROR(Kustannukset[[#This Row],[Arvioidut]]-Kustannukset[[#This Row],[Todelliset]], "") -> -18.00 € | H13: =IFERROR(Kustannukset[[#This Row],[Määrä]]*Kustannukset[[#This Row],[Arvioidut]], "") -> 115.00 € | I13: =IFERROR(Kustannukset[[#This Row],[Määrä]]*Kustannukset[[#This Row],[Todelliset]], "") -> 133.00 € | J13: =IFERROR(Kustannukset[[#This Row],[Arvioidut ]]-Kustannukset[[#This Row],[Todelliset ]], "") -> -18.00 €
B14: Hanat | C14: Allashana, vakio | D14: 1 | E14: 95.00 € | F14: 101.00 € | G14: =IFERROR(Kustannukset[[#This Row],[Arvioidut]]-Kustannukset[[#This Row],[Todelliset]], "") -> -6.00 € | H14: =IFERROR(Kustannukset[[#This Row],[Määrä]]*Kustannukset[[#This Row],[Arvioidut]], "") -> 95.00 € | I14: =IFERROR(Kustannukset[[#This Row],[Määrä]]*Kustannukset[[#This Row],[Todelliset]], "") -> 101.00 € | J14: =IFERROR(Kustannukset[[#This Row],[Arvioidut ]]-Kustannukset[[#This Row],[Todelliset ]], "") -> -6.00 €
B15: Lattiapäällysteet | C15: Kaakeli, vakio (määrä pinta-alayksikköinä) | D15: 35 | E15: 12.00 € | F15: 29.00 € | G15: =IFERROR(Kustannukset[[#This Row],[Arvioidut]]-Kustannukset[[#This Row],[Todelliset]], "") -> -17.00 € | H15: =IFERROR(Kustannukset[[#This Row],[Määrä]]*Kustannukset[[#This Row],[Arvioidut]], "") -> 420.00 € | I15: =IFERROR(Kustannukset[[#This Row],[Määrä]]*Kustannukset[[#This Row],[Todelliset]], "") -> 1,015.00 € | J15: =IFERROR(Kustannukset[[#This Row],[Arvioidut ]]-Kustannukset[[#This Row],[Todelliset ]], "") -> -595.00 €
B16: Laitteisto | C16: Pyyheripustin, vakio | D16: 2 | E16: 15.00 € | F16: 27.00 € | G16: =IFERROR(Kustannukset[[#This Row],[Arvioidut]]-Kustannukset[[#This Row],[Todelliset]], "") -> -12.00 € | H16: =IFERROR(Kustannukset[[#This Row],[Määrä]]*Kustannukset[[#This Row],[Arvioidut]], "") -> 30.00 € | I16: =IFERROR(Kustannukset[[#This Row],[Määrä]]*Kustannukset[[#This Row],[Todelliset]], "") -> 54.00 € | J16: =IFERROR(Kustannukset[[#This Row],[Arvioidut ]]-Kustannukset[[#This Row],[Todelliset ]], "") -> -24.00 €
B17: Laitteisto | C17: Vessapaperin pidike | D17: 1 | E17: 10.00 € | F17: 20.00 € | G17: =IFERROR(Kustannukset[[#This Row],[Arvioidut]]-Kustannukset[[#This Row],[Todelliset]], "") -> -10.00 € | H17: =IFERROR(Kustannukset[[#This Row],[Määrä]]*Kustannukset[[#This Row],[Arvioidut]], "") -> 10.00 € | I17: =IFERROR(Kustannukset[[#This Row],[Määrä]]*Kustannukset[[#This Row],[Todelliset]], "") -> 20.00 € | J17: =IFERROR(Kustannukset[[#This Row],[Arvioidut ]]-Kustannukset[[#This Row],[Todelliset ]], "") -> -10.00 €
B18: Valaistus | C18: Upotetut kattovalot, vakio | D18: 4 | E18: 25.00 € | F18: 27.00 € | G18: =IFERROR(Kustannukset[[#This Row],[Arvioidut]]-Kustannukset[[#This Row],[Todelliset]], "") -> -2.00 € | H18: =IFERROR(Kustannukset[[#This Row],[Määrä]]*Kustannukset[[#This Row],[Arvioidut]], "") -> 100.00 € | I18: =IFERROR(Kustannukset[[#This Row],[Määrä]]*Kustannukset[[#This Row],[Todelliset]], "") -> 108.00 € | J18: =IFERROR(Kustannukset[[#This Row],[Arvioidut ]]-Kustannukset[[#This Row],[Todelliset ]], "") -> -8.00 €
B19: Altaat | C19: Käymälä, vakio | D19: 2 | E19: 60.00 € | F19: 73.00 € | G19: =IFERROR(Kustannukset[[#This Row],[Arvioidut]]-Kustannukset[[#This Row],[Todelliset]], "") -> -13.00 € | H19: =IFERROR(Kustannukset[[#This Row],[Määrä]]*Kustannukset[[#This Row],[Arvioidut]], "") -> 120.00 € | I19: =IFERROR(Kustannukset[[#This Row],[Määrä]]*Kustannukset[[#This Row],[Todelliset]], "") -> 146.00 € | J19: =IFERROR(Kustannukset[[#This Row],[Arvioidut ]]-Kustannukset[[#This Row],[Todelliset ]], "") -> -26.00 €
B20: Muut | D20: 1 | E20: 20.00 € | F20: 23.00 € | G20: =IFERROR(Kustannukset[[#This Row],[Arvioidut]]-Kustannukset[[#This Row],[Todelliset]], "") -> -3.00 € | H20: =IFERROR(Kustannukset[[#This Row],[Määrä]]*Kustannukset[[#This Row],[Arvioidut]], "") -> 20.00 € | I20: =IFERROR(Kustannukset[[#This Row],[Määrä]]*Kustannukset[[#This Row],[Todelliset]], "") -> 23.00 € | J20: =IFERROR(Kustannukset[[#This Row],[Arvioidut ]]-Kustannukset[[#This Row],[Todelliset ]], "") -> -3.00 €
B21: Välisumma | E21: =SUBTOTAL(109,Kustannukset[Arvioidut]) -> 1,464.50 € | F21: =SUBTOTAL(109,Kustannukset[Todelliset]) -> 1,634.00 € | G21: =SUBTOTAL(109,Kustannukset[Erotus]) -> -169.50 € | H21: =SUBTOTAL(109,Kustannukset[[Arvioidut ]]) -> 2,212.50 € | I21: =SUBTOTAL(109,Kustannukset[[Todelliset ]]) -> 3,049.00 € | J21: =SUBTOTAL(109,Kustannukset[[Erotus ]]) -> -836.50 €
B22: Odottamattomat kustannukset (lisää arviolta 30 %) | E22: =IFERROR(Kustannukset[[#Totals],[Arvioidut]]*0.3, "") -> 439.35 € | H22: =IFERROR(Kustannukset[[#Totals],[Arvioidut ]]*0.3, "") -> 663.75 €
B23: Kokonaiskustannukset | E23: =IFERROR(SUM(E21:E21), "") -> 1,464.50 € | H23: =IFERROR(SUM(Kustannukset[[#Totals],[Arvioidut ]],Kattavuus), "") -> 2,876.25 €
